bitfinex/quotes_BTCUSD_20241018
["timestamp","ask_amount","ask_price","bid_price","bid_amount"]
[1729227400461,0.147593,67754.0,67750.0,0.222185]
[1729227400915,0.147593,67754.0,67750.0,0.223185]
[1729227401139,0.147593,67754.0,67750.0,0.075584]
[1729227401368,0.11499679,67756.0,67750.0,0.075584]
[1729227401589,0.11499679,67756.0,67750.0,0.223183]
[1729227401590,0.008,67755.0,67750.0,0.223183]
[1729227401817,0.155592,67755.0,67750.0,0.223183]
[1729227402044,0.147592,67755.0,67750.0,0.223183]
[1729227402269,0.007,67754.0,67750.0,0.223183]
[1729227402488,0.007,67754.0,67750.0,0.222183]
[1729227403383,0.007,67754.0,67751.0,0.147599]
[1729227403624,0.003,67754.0,67751.0,0.147599]
[1729227403835,0.003,67754.0,67752.0,0.147596]
[1729227404284,0.26258579,67756.0,67752.0,0.147596]
[1729227404732,0.007,67754.0,67752.0,0.147596]
[1729227404951,0.26258579,67756.0,67752.0,0.147596]
[1729227405186,0.007,67754.0,67752.0,0.147596]
[1729227405408,0.007,67754.0,67753.0,0.241694]
[1729227405629,0.04395991,67769.0,67762.0,0.147574]
[1729227405630,0.147566,67766.0,67762.0,0.147574]
[1729227405847,0.11499679,67768.0,67762.0,0.147574]
[1729227405848,0.22231279,67763.0,67762.0,0.147574]
[1729227406076,0.01380136,67763.0,67762.0,0.147574]
[1729227406309,0.11499679,67768.0,67762.0,0.147574]
[1729227406310,0.01380136,67766.0,67762.0,0.147574]
[1729227406548,0.16136736,67766.0,67762.0,0.147574]
[1729227406790,0.16136736,67766.0,67760.0,0.147578]
[1729227406791,0.27636815,67765.0,67760.0,0.147578]
[1729227407052,0.147573,67764.0,67760.0,0.147578]
[1729227407530,0.26257179,67762.0,67758.0,0.147582]
[1729227407762,0.147578,67761.0,67757.0,0.147584]
[1729227408236,0.295176,67757.0,67748.0,0.0819]
[1729227408475,0.147592,67754.0,67750.0,0.147601]
[1729227408742,0.147592,67754.0,67749.0,0.22231279]
[1729227408743,0.41017279,67757.0,67749.0,0.22231279]
[1729227408969,0.147591,67755.0,67750.0,0.4428]
[1729227409899,0.001,67754.0,67750.0,0.304201]
[1729227410366,0.147591,67755.0,67751.0,0.147598]
[1729227410819,0.001,67754.0,67751.0,0.147598]
[1729227411220,0.148591,67755.0,67751.0,0.147598]
[1729227411467,0.001,67754.0,67751.0,0.147598]
[1729227411954,0.41017279,67757.0,67751.0,0.442794]
[1729227411955,0.26258279,67757.0,67751.0,0.442794]
[1729227412202,0.001,67754.0,67751.0,0.147599]
[1729227412431,0.001,67754.0,67751.0,0.156599]
[1729227412902,0.001,67754.0,67751.0,0.147599]
[1729227413132,0.002,67754.0,67753.0,0.147594]
[1729227413556,0.001,67754.0,67753.0,0.147594]
[1729227413779,0.001,67754.0,67751.0,0.156597]
[1729227414450,0.001,67754.0,67751.0,0.009]
[1729227414679,0.002,67754.0,67752.0,0.147595]
[1729227414912,0.001,67754.0,67753.0,0.147594]
[1729227415384,0.001,67754.0,67753.0,0.009]
[1729227415385,0.002,67754.0,67753.0,0.009]
[1729227415842,0.002,67754.0,67753.0,0.156594]
[1729227417216,0.001,67754.0,67753.0,0.156594]
[1729227417728,0.002,67754.0,67753.0,0.156594]
[1729227419831,0.002,67754.0,67753.0,0.009]
[1729227420274,0.04608885,67754.0,67753.0,0.009]
[1729227420491,0.002,67754.0,67753.0,0.009]
[1729227420940,0.04608885,67754.0,67753.0,0.156594]
[1729227422071,0.002,67754.0,67753.0,0.156594]
[1729227422301,0.04618424,67754.0,67753.0,0.156594]
[1729227422540,0.06813328,67754.0,67753.0,0.156594]
[1729227423194,0.002,67754.0,67753.0,0.156594]
[1729227423844,0.06813328,67754.0,67753.0,0.156594]
[1729227424284,0.06832761,67754.0,67753.0,0.156594]
[1729227424515,0.002,67754.0,67753.0,0.156594]
[1729227424740,0.06832925,67754.0,67753.0,0.156594]
[1729227424971,0.002,67754.0,67753.0,0.30555315]
[1729227425210,0.06005763,67754.0,67753.0,0.30555315]
[1729227425457,0.015839,67754.0,67753.0,0.30555315]
[1729227425668,0.06005763,67754.0,67753.0,0.30555315]
[1729227425888,0.002,67754.0,67753.0,0.30055315]
[1729227426096,0.002,67754.0,67753.0,0.39445315]
[1729227426303,0.06005658,67754.0,67753.0,0.39445315]
[1729227428206,0.06005633,67754.0,67753.0,0.39445315]
[1729227428466,0.0158377,67754.0,67753.0,0.39445315]
[1729227429629,0.06009792,67754.0,67753.0,0.39445315]
[1729227429846,0.0158377,67754.0,67753.0,0.39445315]
[1729227430485,0.08222324,67754.0,67753.0,0.39445315]
[1729227430698,0.0158377,67754.0,67753.0,0.39445315]
[1729227431145,0.002,67754.0,67753.0,0.59524994]
[1729227432752,0.002,67754.0,67753.0,0.60024994]
[1729227433702,0.002,67754.0,67753.0,0.59524994]
[1729227434778,0.003658,67754.0,67753.0,0.59024994]
[1729227435000,0.003658,67754.0,67753.0,0.59524994]
[1729227436625,0.003658,67754.0,67753.0,0.60524994]
[1729227438513,0.001658,67762.0,67761.0,0.254477]
[1729227438752,0.22397079,67762.0,67761.0,0.70188388]
[1729227438989,0.001658,67762.0,67761.0,0.58393615]
[1729227439234,0.001658,67762.0,67761.0,0.5943105]
[1729227440718,0.001658,67762.0,67761.0,0.6003105]
[1729227440719,0.002658,67762.0,67761.0,0.6003105]
[1729227440961,0.001658,67762.0,67761.0,0.5943105]
[1729227441184,0.002658,67762.0,67761.0,0.6003105]
[1729227441605,0.003658,67762.0,67761.0,0.6143105]
[1729227442060,0.001658,67762.0,67761.0,0.5943105]
[1729227442481,0.001658,67762.0,67761.0,0.6083105]
[1729227443856,0.002658,67762.0,67761.0,0.6143105]
[1729227444073,0.001658,67762.0,67761.0,0.6083105]
[1729227444284,0.001658,67762.0,67761.0,0.5943105]
[1729227444493,0.003658,67762.0,67761.0,0.6143105]
[1729227444904,0.002658,67762.0,67761.0,0.6003105]
[1729227445328,0.003658,67762.0,67761.0,0.6143105]
[1729227447814,0.003658,67762.0,67761.0,0.6373105]
[1729227448029,0.003658,67762.0,67761.0,0.6393105]
[1729227449885,0.003658,67762.0,67761.0,0.6983585]
[1729227450993,0.003658,67762.0,67761.0,0.6963585]
[1729227452048,0.003658,67762.0,67761.0,0.4419105]
[1729227455890,0.003658,67762.0,67761.0,0.6345105]
[1729227458369,0.003658,67762.0,67761.0,0.74950729]
[1729227462993,0.003658,67762.0,67761.0,0.80855429]
[1729227468496,0.003658,67762.0,67761.0,0.85449678]
[1729227468708,0.003658,67762.0,67761.0,0.80855429]
[1729227469129,0.003658,67762.0,67761.0,0.85449856]
[1729227472946,0.003658,67762.0,67761.0,0.85249856]
[1729227475041,0.003658,67762.0,67761.0,0.85449856]
[1729227483413,0.003658,67762.0,67761.0,0.85249856]
[1729227485065,0.003658,67762.0,67761.0,0.85449856]
[1729227488833,0.003658,67762.0,67761.0,0.85249856]
[1729227489052,0.003658,67762.0,67761.0,0.56990177]
[1729227489290,0.003658,67762.0,67761.0,0.68489856]
[1729227491301,0.003658,67762.0,67761.0,0.68689856]
[1729227493349,0.002658,67762.0,67761.0,0.68089856]
[1729227493788,0.003658,67762.0,67761.0,0.68589856]
[1729227494239,0.002658,67762.0,67761.0,0.67189856]
[1729227494445,0.002658,67762.0,67761.0,0.68589856]
[1729227494446,0.003658,67762.0,67761.0,0.68589856]
[1729227495991,0.003658,67762.0,67761.0,0.68389856]
[1729227500503,0.003658,67762.0,67761.0,0.68589856]
[1729227501190,0.003658,67762.0,67761.0,0.7300593]
[1729227501650,0.003658,67762.0,67761.0,0.68589856]
[1729227501870,0.003658,67762.0,67761.0,0.7300593]
[1729227503185,0.003658,67762.0,67761.0,0.73006239]
[1729227504273,0.003658,67762.0,67761.0,0.6150656]
[1729227504769,0.003658,67762.0,67761.0,0.57090177]
[1729227505229,0.003658,67762.0,67761.0,0.55212362]
[1729227511084,0.003658,67762.0,67761.0,0.59628745]
[1729227511543,0.003658,67762.0,67761.0,0.55212362]
[1729227513618,0.003658,67762.0,67761.0,0.59628657]
[1729227514290,0.003658,67762.0,67761.0,0.55212362]
[1729227515449,0.003658,67762.0,67761.0,0.55295162]
[1729227518405,0.003658,67762.0,67761.0,0.59713272]
[1729227518835,0.003658,67762.0,67761.0,0.55295162]
[1729227522088,0.003658,67762.0,67761.0,0.59713784]
[1729227528665,0.003658,67762.0,67761.0,0.55295162]
[1729227537476,0.003658,67762.0,67761.0,0.59713764]
[1729227537916,0.003658,67762.0,67761.0,0.55295162]
[1729227545450,0.003658,67762.0,67761.0,0.59713727]
[1729227545915,0.003658,67762.0,67761.0,0.71213406]
[1729227546357,0.08030429,67769.0,67768.0,0.157562]
[1729227546583,0.08030429,67769.0,67768.0,0.40652115]
[1729227546789,0.08030429,67769.0,67768.0,0.41566117]
[1729227547055,0.08030429,67769.0,67768.0,0.40566117]
[1729227547289,0.08030429,67769.0,67768.0,0.41566117]
[1729227547914,0.08130429,67769.0,67768.0,0.42066117]
[1729227548871,0.08230429,67769.0,67768.0,0.43466117]
[1729227549552,0.08230429,67769.0,67768.0,0.42466117]
[1729227549780,0.08230429,67769.0,67768.0,0.43466117]
[1729227554411,0.08230429,67769.0,67768.0,0.44628492]
[1729227560834,0.08396029,67769.0,67768.0,0.44628492]
[1729227563099,0.003656,67769.0,67768.0,0.44628492]
[1729227563301,0.003656,67769.0,67768.0,0.51732156]
[1729227563653,0.003656,67769.0,67768.0,0.56151665]
[1729227563843,0.003656,67769.0,67768.0,0.56150065]
[1729227564455,0.001656,67769.0,67768.0,0.49832156]
[1729227564691,0.001656,67769.0,67768.0,0.51232156]
[1729227564918,0.003656,67769.0,67768.0,0.51832156]
[1729227565347,0.002656,67769.0,67768.0,0.51232156]
[1729227566189,0.003656,67769.0,67768.0,0.51832156]
[1729227566405,0.003656,67769.0,67768.0,0.63331835]
[1729227566625,0.003656,67769.0,67768.0,0.51832156]
[1729227567508,0.003656,67769.0,67768.0,0.50432156]
[1729227567509,0.002656,67769.0,67768.0,0.50432156]
[1729227568165,0.002656,67769.0,67768.0,0.51832156]
[1729227568915,0.002656,67769.0,67768.0,0.63331835]
[1729227569359,0.002656,67769.0,67768.0,0.51832156]
[1729227569588,0.002656,67769.0,67768.0,0.57736356]
[1729227570523,0.002656,67769.0,67768.0,0.69236035]
[1729227571269,0.002656,67769.0,67768.0,0.85302899]
[1729227571490,0.002656,67769.0,67768.0,0.97070868]
[1729227571923,0.002656,67769.0,67768.0,0.89844004]
[1729227571924,0.001656,67769.0,67768.0,0.89844004]
[1729227572143,0.001656,67769.0,67768.0,0.88444004]
[1729227572371,0.002656,67769.0,67768.0,0.89844004]
[1729227572592,0.001656,67769.0,67768.0,0.96459861]
[1729227572832,0.002656,67769.0,67768.0,0.97859861]
[1729227573517,0.002656,67769.0,67768.0,0.7238735]
[1729227573743,0.002656,67769.0,67768.0,0.90975714]
[1729227574655,0.002656,67769.0,67768.0,0.89575714]
[1729227574881,0.002656,67769.0,67768.0,0.90975714]
[1729227579893,0.002656,67769.0,67768.0,0.69836035]
[1729227580349,0.002656,67769.0,67768.0,0.65232371]
[1729227581584,0.002656,67769.0,67768.0,0.62932371]
[1729227581816,0.002656,67769.0,67768.0,0.57028171]
[1729227582630,0.001656,67769.0,67768.0,0.54228171]
[1729227583135,0.001656,67769.0,67768.0,0.57028171]
[1729227583359,0.001656,67769.0,67768.0,0.55628171]
[1729227583592,0.001656,67769.0,67768.0,0.57028171]
[1729227584267,0.001656,67769.0,67768.0,0.55628171]
[1729227584686,0.001656,67769.0,67768.0,0.57028171]
[1729227600062,0.001656,67769.0,67768.0,0.61629031]
[1729227600729,0.001656,67769.0,67768.0,0.57028171]
[1729227601355,0.001656,67769.0,67768.0,0.57228171]
[1729227601558,0.001656,67769.0,67768.0,0.57028171]
[1729227602076,0.001656,67769.0,67768.0,0.75628571]
[1729227602285,0.001656,67769.0,67768.0,0.73308892]
[1729227602496,0.001656,67769.0,67768.0,0.63928892]
[1729227604236,0.001656,67769.0,67768.0,0.64128892]
[1729227607170,0.001656,67769.0,67768.0,0.52429213]
[1729227607431,0.001656,67769.0,67768.0,0.50129213]
[1729227607864,0.001656,67769.0,67768.0,0.45528492]
[1729227609879,0.001656,67769.0,67768.0,0.44528492]
[1729227610091,0.001656,67769.0,67768.0,0.33366117]
[1729227610313,0.179756,67769.0,67768.0,0.33366117]
[1729227610755,0.179756,67769.0,67768.0,0.03714002]
[1729227610756,0.29975279,67769.0,67768.0,0.03714002]
[1729227610962,0.35783701,67769.0,67768.0,0.18470202]
[1729227611176,0.35783701,67769.0,67768.0,0.17070202]
[1729227611177,0.184756,67769.0,67768.0,0.17070202]
[1729227611419,0.25112839,67769.0,67768.0,0.18470202]
[1729227611658,0.184756,67769.0,67768.0,0.18470202]
[1729227611869,0.22898699,67769.0,67768.0,0.17070202]
[1729227612147,0.22398699,67769.0,67768.0,0.17070202]
[1729227612330,0.22898699,67769.0,67768.0,0.18470202]
[1729227612549,0.22898699,67769.0,67768.0,0.17070202]
[1729227612550,0.184756,67769.0,67768.0,0.17070202]
[1729227612764,0.184756,67769.0,67768.0,0.18470202]
[1729227612979,0.184756,67769.0,67768.0,0.17070202]
[1729227613474,0.22398699,67769.0,67768.0,0.17270202]
[1729227613675,0.179756,67769.0,67768.0,0.32166117]
[1729227613891,0.179756,67769.0,67768.0,0.42265796]
[1729227614110,0.001656,67769.0,67768.0,0.42265796]
[1729227614318,0.001656,67769.0,67768.0,0.42865796]
[1729227614782,0.001656,67769.0,67768.0,0.42265796]
[1729227615200,0.001656,67769.0,67768.0,0.43665796]
[1729227615628,0.001656,67769.0,67768.0,0.42265796]
[1729227616066,0.001656,67769.0,67768.0,0.43665796]
[1729227616477,0.001656,67769.0,67768.0,0.45065796]
[1729227616691,0.001656,67769.0,67768.0,0.43665796]
[1729227616907,0.001656,67769.0,67768.0,0.53665796]
[1729227617142,0.001656,67769.0,67768.0,0.56065796]
[1729227617629,0.001656,67769.0,67768.0,0.79278177]
[1729227617852,0.001656,67769.0,67768.0,0.9242279]
[1729227618296,0.001656,67769.0,67768.0,0.9382279]
[1729227618731,0.001656,67769.0,67768.0,0.9242279]
[1729227619123,0.001656,67769.0,67768.0,0.9382279]
[1729227619756,0.001656,67769.0,67768.0,0.9242279]
[1729227620392,0.001656,67769.0,67768.0,0.9102279]
[1729227620600,0.001656,67769.0,67768.0,0.9242279]
[1729227620815,0.001656,67769.0,67768.0,0.9382279]
[1729227621017,0.001656,67769.0,67768.0,0.82323111]
[1729227623817,0.001656,67769.0,67768.0,0.9382279]
[1729227629704,1e-06,67769.0,67768.0,1.1216623]
[1729227630178,1e-06,67769.0,67768.0,1.05547867]
[1729227630415,1e-06,67769.0,67768.0,1.04147867]
[1729227630632,1e-06,67769.0,67768.0,1.10759999]
[1729227630848,1e-06,67769.0,67768.0,1.12159999]
[1729227631074,1e-06,67769.0,67768.0,1.10759999]
[1729227631311,1e-06,67769.0,67768.0,1.12159999]
[1729227631550,1e-06,67769.0,67768.0,1.00434922]
[1729227631955,1e-06,67769.0,67768.0,1.121298]
[1729227632171,1e-06,67769.0,67768.0,1.02647274]
[1729227632617,1e-06,67769.0,67768.0,0.9382279]
[1729227632852,1e-06,67769.0,67768.0,0.9242279]
[1729227633063,1e-06,67769.0,67768.0,0.9102279]
[1729227633286,1e-06,67769.0,67768.0,0.99032437]
[1729227633503,1e-06,67769.0,67768.0,1.00432437]
[1729227633720,1e-06,67769.0,67768.0,1.02635474]
[1729227633942,1e-06,67769.0,67768.0,1.01235474]
[1729227634576,1e-06,67769.0,67768.0,1.02635474]
[1729227634789,1e-06,67769.0,67768.0,1.01235474]
[1729227635461,0.22231279,67786.0,67785.0,0.51051858]
[1729227635670,0.22231279,67786.0,67785.0,0.65947773]
[1729227635883,0.22231279,67786.0,67785.0,0.66730888]
[1729227636097,0.0778,67792.0,67791.0,0.247512]
[1729227636324,0.0778,67792.0,67791.0,0.51925367]
[1729227637670,0.0911,67794.0,67793.0,0.247507]
[1729227637939,0.0911,67794.0,67793.0,0.40423674]
[1729227640462,0.25231279,67807.0,67793.0,0.40423674]
[1729227640463,0.0944,67800.0,67797.0,0.280499]
[1729227640710,0.0767,67802.0,67797.0,0.42945815]
[1729227640929,0.0767,67802.0,67797.0,0.43717339]
[1729227642747,0.0767,67802.0,67797.0,0.45117339]
[1729227643447,0.0767,67802.0,67797.0,0.46517339]
[1729227644878,0.0767,67802.0,67797.0,0.45517339]
[1729227645111,0.0767,67802.0,67797.0,0.46517339]
[1729227645849,0.096056,67798.0,67797.0,0.44217339]
[1729227646079,0.172756,67798.0,67797.0,0.44217339]
[1729227650009,0.172756,67798.0,67797.0,0.42817339]
[1729227650230,0.172756,67798.0,67797.0,0.44217339]
[1729227650679,0.172756,67798.0,67797.0,0.42817339]
[1729227650914,0.172756,67798.0,67797.0,0.41417339]
[1729227651136,0.172756,67798.0,67797.0,0.42817339]
[1729227651356,0.172756,67798.0,67797.0,0.44217339]
[1729227658646,0.001656,67798.0,67797.0,0.42817339]
[1729227659326,0.001656,67798.0,67797.0,0.41417339]
[1729227659568,0.001656,67798.0,67797.0,0.42817339]
[1729227659778,0.001656,67798.0,67797.0,0.44217339]
[1729227659989,0.001656,67798.0,67797.0,0.42817339]
[1729227660433,0.001656,67798.0,67797.0,0.44217339]
[1729227660922,0.001656,67798.0,67797.0,0.58017018]
[1729227661150,0.001656,67798.0,67797.0,0.46517339]
[1729227663239,0.001656,67798.0,67797.0,0.46717339]
[1729227665727,0.001656,67798.0,67797.0,0.58217018]
[1729227665931,0.001656,67798.0,67797.0,0.65927018]
[1729227666961,0.001656,67798.0,67797.0,0.64527018]
[1729227667412,0.03,67808.0,67807.0,0.170477]
[1729227667637,0.03,67808.0,67807.0,0.429961]
[1729227667866,0.03,67808.0,67807.0,0.42701183]
[1729227668549,0.03,67808.0,67807.0,0.44101183]
[1729227668995,0.03,67808.0,67807.0,0.42701183]
[1729227669204,0.03,67808.0,67807.0,0.45101183]
[1729227669402,0.03,67808.0,67807.0,0.46501183]
[1729227669870,0.03,67808.0,67807.0,0.44201183]
[1729227670116,0.14499679,67808.0,67807.0,0.31801183]
[1729227670359,0.2036,67808.0,67807.0,0.31801183]
[1729227670590,0.2036,67808.0,67807.0,0.33201183]
[1729227671504,0.2036,67808.0,67807.0,0.31801183]
[1729227672179,0.2036,67808.0,67807.0,0.30401183]
[1729227672594,0.2046,67808.0,67807.0,0.30401183]
[1729227676815,0.26426198,67808.0,67807.0,0.30401183]
[1729227677303,0.206256,67808.0,67807.0,0.30401183]
[1729227677789,0.25045114,67808.0,67807.0,0.30401183]
[1729227678952,0.206256,67808.0,67807.0,0.30401183]
[1729227679176,0.25046554,67808.0,67807.0,0.30401183]
[1729227680333,0.205256,67808.0,67807.0,0.30401183]
[1729227680557,0.205256,67808.0,67807.0,0.30501183]
[1729227680779,0.206256,67808.0,67807.0,0.30501183]
[1729227681452,0.3695097,67808.0,67807.0,0.30501183]
[1729227681681,0.47171137,67808.0,67807.0,0.15753483]
[1729227681910,0.49392662,67808.0,67807.0,0.30401183]
[1729227682159,0.49392662,67808.0,67807.0,0.15653483]
[1729227682390,0.49292662,67808.0,67807.0,0.30401183]
[1729227682647,0.49292662,67808.0,67807.0,0.15653483]
[1729227682871,0.38234623,67808.0,67807.0,0.30901183]
[1729227683096,0.38234623,67808.0,67807.0,0.30501183]
[1729227683097,0.36853485,67808.0,67807.0,0.30501183]
[1729227683322,0.38234626,67808.0,67807.0,0.30501183]
[1729227683560,0.38734626,67808.0,67807.0,0.01057568]
[1729227683794,0.53482126,67808.0,67807.0,0.002]
[1729227684046,0.53582126,67808.0,67807.0,0.002]
[1729227684265,0.38834626,67808.0,67807.0,0.002]
[1729227684727,0.38834626,67808.0,67807.0,0.0095821]
[1729227685426,0.38734626,67808.0,67807.0,0.0075821]
[1729227685881,0.38834626,67808.0,67805.0,0.147481]
[1729227686109,0.358731,67808.0,67807.0,0.0075821]
[1729227686331,0.53486021,67808.0,67804.0,0.147482]
[1729227686598,0.17712921,67807.0,67804.0,0.147482]
[1729227686825,0.17212921,67806.0,67804.0,0.147482]
[1729227687052,0.01380763,67805.0,67804.0,0.147482]
[1729227687764,0.01380763,67807.0,67804.0,0.147482]
[1729227687996,0.11058533,67805.0,67802.0,0.294972]
[1729227688232,0.11058533,67805.0,67802.0,0.29644715]
[1729227688233,0.0884682,67803.0,67802.0,0.29644715]
[1729227688487,0.12439289,67803.0,67802.0,0.29644715]
[1729227689385,0.01380763,67803.0,67802.0,0.29644715]
[1729227689841,0.01380763,67803.0,67802.0,0.29944715]
[1729227690076,0.01380763,67803.0,67802.0,0.29644715]
[1729227690590,0.01380763,67803.0,67802.0,0.30144715]
[1729227691505,0.11058526,67804.0,67803.0,0.147486]
[1729227691726,0.2981865,67804.0,67803.0,0.147486]
[1729227692676,0.18760124,67804.0,67803.0,0.147486]
[1729227693141,0.18860124,67804.0,67802.0,0.14895915]
[1729227693363,0.28538526,67804.0,67802.0,0.14895915]
[1729227693797,0.28538526,67804.0,67803.0,0.147486]
[1729227693976,0.29918524,67804.0,67803.0,0.147486]
[1729227694194,0.18859998,67804.0,67803.0,0.147486]
[1729227694415,0.27703022,67804.0,67803.0,0.147486]
[1729227694862,0.18859998,67804.0,67803.0,0.147486]
[1729227695499,0.27702675,67804.0,67803.0,0.147486]
[1729227695711,0.27702675,67804.0,67802.0,0.14895915]
[1729227695947,0.26222475,67804.0,67802.0,0.14895915]
[1729227696183,0.10222471,67803.0,67802.0,0.14895915]
[1729227697578,0.10322471,67803.0,67802.0,0.14895915]
[1729227697809,0.005,67799.0,67798.0,0.000827]
[1729227698066,0.29825982,67799.0,67798.0,0.000827]
[1729227698288,0.45956163,67799.0,67798.0,0.000827]
[1729227698724,0.31206763,67799.0,67798.0,0.000827]
[1729227698945,0.44575382,67799.0,67798.0,0.000827]
[1729227699192,0.52587094,67799.0,67798.0,0.000827]
[1729227699406,0.37837694,67799.0,67798.0,0.000827]
[1729227699619,0.31206802,67799.0,67798.0,0.003827]
[1729227699836,0.31206802,67799.0,67798.0,0.01149019]
[1729227700081,0.31206802,67799.0,67798.0,0.003827]
[1729227700316,0.37836636,67799.0,67798.0,0.01149019]
[1729227701214,0.52586036,67799.0,67798.0,0.01149019]
[1729227701486,0.45956202,67799.0,67798.0,0.01149019]
[1729227701704,0.45956202,67799.0,67798.0,0.003827]
[1729227701921,0.755352,67799.0,67798.0,0.003827]
[1729227702138,0.005,67792.0,67783.0,0.36984079]
[1729227702372,0.34608682,67784.0,67783.0,0.22231279]
[1729227702594,0.35989502,67784.0,67783.0,0.22231279]
[1729227702840,0.37105402,67784.0,67774.0,0.295097]
[1729227703102,0.11525982,67780.0,67779.0,0.147536]
[1729227703324,0.0441898,67783.0,67782.0,0.147531]
[1729227703325,0.11525982,67783.0,67782.0,0.147531]
[1729227703549,0.12025982,67783.0,67781.0,0.147532]
[1729227703998,0.12025982,67783.0,67777.0,0.295085]
[1729227703999,0.005,67783.0,67778.0,0.29508]
[1729227704225,0.005,67783.0,67780.0,0.147535]
[1729227704470,0.005,67783.0,67781.0,0.147532]
[1729227704697,0.005,67783.0,67780.0,0.147536]
[1729227705679,0.005,67783.0,67782.0,0.002]
[1729227705906,0.005,67783.0,67779.0,0.295076]
[1729227706131,0.006,67783.0,67779.0,0.295076]
[1729227706353,0.006,67783.0,67781.0,0.147532]
[1729227706813,0.011,67783.0,67780.0,0.295072]
[1729227707038,0.01,67783.0,67782.0,0.147531]
[1729227707260,0.006,67783.0,67782.0,0.147531]
[1729227707484,0.006,67783.0,67779.0,0.001]
[1729227707962,0.006,67783.0,67782.0,0.147531]
[1729227708441,0.006,67783.0,67781.0,0.147533]
[1729227708671,0.007,67783.0,67781.0,0.147533]
[1729227708906,0.006,67783.0,67780.0,0.001]
[1729227709142,0.006,67783.0,67782.0,0.147531]
[1729227709371,0.007,67783.0,67782.0,0.147531]
[1729227709606,0.005,67783.0,67782.0,0.147531]
[1729227709834,0.008,67783.0,67782.0,0.147531]
[1729227710284,0.005,67783.0,67782.0,0.147531]
[1729227710532,0.005,67783.0,67782.0,0.148531]
[1729227710758,0.006,67783.0,67782.0,0.148531]
[1729227711868,0.008,67783.0,67782.0,0.001827]
[1729227712556,0.008,67783.0,67782.0,0.00965899]
[1729227715699,0.155529,67783.0,67782.0,0.00965899]
[1729227716099,0.155529,67783.0,67782.0,0.001827]
[1729227718421,0.155529,67783.0,67782.0,0.00965899]
[1729227718630,0.155529,67783.0,67782.0,0.001827]
[1729227718857,0.155529,67783.0,67782.0,0.00965899]
[1729227719080,0.155529,67783.0,67782.0,0.001827]
[1729227719309,0.155529,67783.0,67782.0,0.00965899]
[1729227719537,0.155529,67783.0,67782.0,0.001827]
[1729227719993,0.155529,67783.0,67782.0,0.00965899]
[1729227721163,0.008,67783.0,67782.0,0.001827]
[1729227721602,0.155529,67783.0,67782.0,0.001827]
[1729227721815,0.155529,67783.0,67782.0,0.00973638]
[1729227722045,0.155529,67783.0,67782.0,0.001827]
[1729227722282,0.21523576,67783.0,67782.0,0.00973638]
[1729227722507,0.61379499,67783.0,67782.0,0.001827]
[1729227722733,0.61379499,67783.0,67766.0,0.22231279]
[1729227722734,0.087,67770.0,67766.0,0.36987879]
[1729227722961,0.087,67770.0,67767.0,0.148391]
[1729227723196,0.234557,67770.0,67767.0,0.000828]
[1729227724320,0.234557,67770.0,67769.0,0.014828]
[1729227725223,0.234557,67770.0,67769.0,0.000828]
[1729227725224,0.087,67770.0,67769.0,0.000828]
[1729227725444,0.236557,67770.0,67769.0,0.000828]
[1729227725885,0.3519601,67770.0,67769.0,0.000828]
[1729227726123,0.3529601,67770.0,67769.0,0.000828]
[1729227729519,0.4438601,67770.0,67769.0,0.000828]
[1729227730206,0.4488601,67770.0,67769.0,0.000828]
[1729227732481,0.78657599,67770.0,67769.0,0.000828]
[1729227732699,0.5762632,67770.0,67769.0,0.000828]
[1729227733116,0.4608601,67770.0,67769.0,0.000828]
[1729227733330,0.4598601,67770.0,67769.0,0.000828]
[1729227733754,0.72922235,67770.0,67769.0,0.001828]
[1729227733982,0.72222235,67770.0,67769.0,0.000828]
[1729227734201,0.82131542,67770.0,67769.0,0.000828]
[1729227734414,0.83031542,67770.0,67769.0,0.001828]
[1729227734583,0.71491232,67770.0,67769.0,0.001828]
[1729227734799,0.71291232,67770.0,67769.0,0.001828]
[1729227735008,0.72291232,67770.0,67769.0,0.002828]
[1729227735177,0.83831542,67770.0,67769.0,0.002828]
[1729227735678,0.82831542,67770.0,67769.0,0.001828]
[1729227735977,0.71991232,67770.0,67769.0,0.002828]
[1729227736192,0.72191232,67770.0,67769.0,0.002828]
[1729227736629,0.83731542,67770.0,67769.0,0.002828]
[1729227736841,0.72191232,67770.0,67769.0,0.002828]
[1729227737269,0.71991232,67770.0,67769.0,0.002828]
[1729227737703,0.60450922,67770.0,67769.0,0.002828]
[1729227737911,0.71991232,67770.0,67769.0,0.002828]
[1729227738976,0.72191232,67770.0,67769.0,0.002828]
[1729227739175,0.344062,67768.0,67767.0,0.000828]
[1729227739380,0.49302115,67768.0,67767.0,0.000828]
[1729227739604,0.61042425,67768.0,67767.0,0.000828]
[1729227739896,0.49502115,67768.0,67767.0,0.000828]
[1729227740354,0.6439803,67768.0,67767.0,0.000828]
[1729227740482,0.6499803,67768.0,67767.0,0.001828]
[1729227741109,0.7653834,67768.0,67767.0,0.001828]
[1729227741551,0.6479803,67768.0,67767.0,0.001828]
[1729227741792,0.77379456,67768.0,67767.0,0.001828]
[1729227742201,0.77579456,67768.0,67767.0,0.001828]
[1729227742434,0.78379456,67768.0,67767.0,0.002828]
[1729227743319,0.89919766,67768.0,67767.0,0.002828]
[1729227744233,0.89919766,67768.0,67754.0,0.000829]
[1729227744234,0.15259,67755.0,67754.0,0.000829]
[1729227744451,0.2679931,67755.0,67754.0,0.000829]
[1729227746496,0.2789931,67755.0,67754.0,0.001829]
[1729227746734,0.2889931,67755.0,67754.0,0.002829]
[1729227748107,0.47678017,67755.0,67754.0,0.002829]
[1729227748324,0.43272317,67755.0,67754.0,0.002829]
[1729227748545,0.47679093,67755.0,67754.0,0.002829]
[1729227748771,0.33806086,67755.0,67754.0,0.002829]
[1729227748992,0.34306086,67755.0,67754.0,0.002829]
[1729227749214,0.2989931,67755.0,67754.0,0.002829]
[1729227750315,0.34305088,67755.0,67754.0,0.002829]
[1729227751195,0.2989931,67755.0,67754.0,0.002829]
[1729227751423,0.34304798,67755.0,67754.0,0.002829]
[1729227753249,0.34304698,67755.0,67754.0,0.002829]